bitfinex-derivatives/quotes_SOLF0:USTF0_20250716
["timestamp","ask_amount","ask_price","bid_price","bid_amount"]
[1752669311662,0.04591064,167.35,167.29,182.0]
[1752669311956,6.80916909,167.33,167.29,182.0]
[1752669312360,0.04591064,167.35,167.29,182.0]
[1752669312658,0.04591064,167.35,167.29,187.9768]
[1752669312853,0.04591064,167.35,167.26,6.80916909]
[1752669313053,6.80916909,167.34,167.22,516.16]
[1752669313255,6.80916909,167.34,167.24,6.80916909]
[1752669313656,5.9768,167.3,167.26,5.9776]
[1752669313953,0.04594442,167.31,167.27,182.0]
[1752669314254,0.04594442,167.31,167.28,182.0]
[1752669314662,5.977,167.29,167.25,5.9783]
[1752669314863,0.04594442,167.31,167.26,182.0]
[1752669315261,5.9775,167.28,167.26,182.0]
[1752669315665,0.04594442,167.31,167.26,182.0]
[1752669315859,5.9771,167.29,167.26,187.9777]
[1752669316055,0.04594442,167.31,167.26,182.0]
[1752669316260,0.04594442,167.31,167.27,182.02]
[1752669316460,5.9766,167.3,167.27,182.02]
[1752669316965,0.04594442,167.31,167.27,182.02]
[1752669316966,5.9771,167.29,167.27,182.02]
[1752669317359,0.04594442,167.31,167.27,182.02]
[1752669317559,0.04594442,167.31,167.28,182.0]
[1752669317955,5.9767,167.3,167.28,182.0]
[1752669318263,0.04594442,167.31,167.28,182.0]
[1752669318463,6.02214442,167.31,167.28,187.977]
[1752669318662,0.04594442,167.31,167.28,182.0]
[1752669319665,0.04594442,167.31,167.29,5.9766]
[1752669320665,0.04594442,167.31,167.3,5.9765]
[1752669320866,0.04594442,167.31,167.3,182.02]
[1752669322664,6.02204442,167.31,167.3,182.02]
[1752669323070,4.13478113,167.31,167.23,4.08883671]
[1752669323369,4.13478113,167.31,167.24,182.0]
[1752669323370,4.08883671,167.29,167.24,182.0]
[1752669323566,5.9778,167.27,167.24,182.0]
[1752669323867,4.13478113,167.31,167.24,182.0]
[1752669324065,5.9774,167.28,167.24,182.0]
[1752669324663,5.9776,167.27,167.24,187.9784]
[1752669325070,0.03930861,167.29,167.24,182.0]
[1752669325269,5.9772,167.28,167.24,187.9785]
[1752669325465,0.03930861,167.29,167.24,182.0]
[1752669326572,5.9779,167.26,167.24,182.0]
[1752669327066,5.9777,167.27,167.24,182.0]
[1752669327467,0.03930861,167.29,167.24,182.0]
[1752669327671,5.9778,167.27,167.24,182.0]
[1752669327870,0.03930861,167.29,167.24,182.0]
[1752669328573,0.03930861,167.29,167.25,0.03968593]
[1752669329469,5.9775,167.27,167.25,0.03968593]
[1752669329869,5.9778,167.26,167.25,0.03968593]
[1752669330074,6.81596557,167.27,167.17,6.81596557]
[1752669330266,6.81596557,167.27,167.18,181.98]
[1752669330475,5.9793,167.22,167.19,5.9803]
[1752669330680,130.81596557,167.27,167.18,181.98]
[1752669330882,124.0,167.27,167.19,6.81596557]
[1752669331085,124.0,167.27,167.21,6.81596557]
[1752669331382,6.81596557,167.33,167.23,6.81596557]
[1752669331585,6.81596557,167.33,167.24,187.9784]
[1752669331778,130.81596557,167.33,167.24,187.9784]
[1752669331981,130.81596557,167.33,167.24,182.0]
[1752669332788,5.9774,167.28,167.24,187.9783]
[1752669333287,0.03866489,167.3,167.24,187.9783]
[1752669334187,0.03866489,167.3,167.24,182.0]
[1752669334490,5.9773,167.28,167.24,182.0]
[1752669334786,5.9773,167.28,167.24,187.9783]
[1752669335179,5.9773,167.28,167.24,182.0]
[1752669336082,5.9773,167.28,167.25,5.9782]
[1752669336287,5.9773,167.28,167.24,182.0]
[1752669336488,5.9776,167.27,167.24,182.0]
[1752669336989,5.9779,167.26,167.24,182.0]
[1752669337185,6.81596557,167.29,167.24,182.0]
[1752669338187,5.9782,167.25,167.24,182.0]
[1752669343693,5.9789,167.23,167.2,187.9399]
[1752669344192,0.03920495,167.26,167.2,181.96]
[1752669344992,0.03920495,167.26,167.2,186.05184808]
[1752669346092,0.03920495,167.26,167.24,5.9784]
[1752669346295,0.03920495,167.26,167.25,181.94]
[1752669347195,0.03920495,167.26,167.25,187.9182]
[1752669347591,5.9766,167.3,167.25,181.94]
[1752669347986,5.9766,167.3,167.26,5.9777]
[1752669348191,10.00675002,167.33,167.26,4.09184808]
[1752669348585,10.00675002,167.33,167.26,10.06944808]
[1752669349001,10.00675002,167.33,167.28,0.03887966]
[1752669349388,5.9768,167.29,167.28,0.03887966]
[1752669350294,5.9766,167.3,167.28,0.03887966]
[1752669350597,10.00675002,167.33,167.28,0.03887966]
[1752669350794,10.00675002,167.32,167.28,0.03887966]
[1752669351896,10.00675002,167.33,167.28,0.03887966]
[1752669352098,5.9764,167.31,167.28,0.03887966]
[1752669352300,5.9764,167.31,167.28,6.01587966]
[1752669352994,5.9765,167.3,167.28,0.03887966]
[1752669353591,5.9768,167.29,167.28,0.03887966]
[1752669354198,5.9766,167.3,167.28,0.03887966]
[1752669354798,5.9768,167.29,167.28,0.03887966]
[1752669355097,10.00675002,167.31,167.28,0.03887966]
[1752669355291,10.00675002,167.33,167.28,0.03887966]
[1752669355497,5.9763,167.31,167.28,6.01597966]
[1752669355695,10.00675002,167.33,167.28,6.01597966]
[1752669355897,10.00675002,167.32,167.28,6.01597966]
[1752669356197,10.00675002,167.33,167.28,6.01597966]
[1752669356501,5.9761,167.31,167.28,6.01597966]
[1752669356804,10.00675002,167.33,167.29,5.9768]
[1752669357002,5.9763,167.31,167.28,0.03887966]
[1752669357500,5.9763,167.31,167.28,6.01587966]
[1752669357703,5.9766,167.3,167.28,6.01587966]
[1752669358101,10.00675002,167.32,167.28,6.01587966]
[1752669358304,10.00675002,167.34,167.28,0.03887966]
[1752669358504,10.00675002,167.33,167.28,0.03887966]
[1752669358698,5.9767,167.3,167.28,0.03887966]
[1752669359603,5.9767,167.3,167.28,6.01577966]
[1752669360203,10.00675002,167.33,167.29,5.9766]
[1752669360599,10.00675002,167.34,167.29,5.9766]
[1752669361003,10.00675002,167.34,167.3,4.09184808]
[1752669361198,10.00675002,167.36,167.3,4.09184808]
[1752669361406,5.9759,167.32,167.29,181.76]
[1752669361603,10.00675002,167.33,167.29,181.76]
[1752669361906,5.9758,167.32,167.29,181.804287]
[1752669362107,5.9758,167.32,167.29,187.780787]
[1752669362307,10.00675002,167.33,167.29,181.804287]
[1752669362607,10.00675002,167.34,167.29,185.89613508]
[1752669362809,10.00675002,167.35,167.29,185.89613508]
[1752669363003,5.9754,167.33,167.29,185.89613508]
[1752669363206,5.9754,167.33,167.3,5.9763]
[1752669363404,10.00675002,167.35,167.29,185.89613508]
[1752669363605,15.98155002,167.35,167.29,185.89613508]
[1752669363799,10.00675002,167.35,167.29,185.89613508]
[1752669363998,15.98155002,167.35,167.29,185.89613508]
[1752669364203,10.00675002,167.35,167.29,185.89613508]
[1752669364800,10.00675002,167.36,167.29,185.89613508]
[1752669365201,5.9764,167.3,167.29,0.044287]
[1752669365708,14.0985981,167.33,167.29,0.044287]
[1752669365908,5.9761,167.32,167.29,0.044287]
[1752669366311,10.00675002,167.35,167.3,4.09184808]
[1752669367007,5.9752,167.34,167.31,6.01564076]
[1752669367204,10.00675002,167.35,167.31,0.03984076]
[1752669367409,10.00675002,167.32,167.26,181.7]
[1752669367606,5.9762,167.31,167.26,181.7]
[1752669368312,5.9758,167.32,167.27,4.09184808]
[1752669368606,10.00675002,167.33,167.27,4.09184808]
[1752669368810,0.04060065,167.3,167.28,5.9768]
[1752669369113,0.04060065,167.3,167.27,4.09184808]
[1752669369607,0.04060065,167.3,167.29,5.9768]
[1752669371312,0.04060065,167.3,167.29,10.06864808]
[1752669371502,0.04060065,167.3,167.28,5.977]
[1752669372514,0.04060065,167.3,167.29,5.9768]
[1752669372714,0.04060065,167.3,167.29,10.06864808]
[1752669372914,0.04060065,167.3,167.29,5.9768]
[1752669376318,15.98115002,167.36,167.32,5.9755]
[1752669376617,14.0985981,167.37,167.29,4.09184808]
[1752669376817,5.9749,167.35,167.31,5.976]
[1752669377014,14.0985981,167.37,167.29,4.09184808]
[1752669377217,10.00675002,167.36,167.29,4.09184808]
[1752669377511,10.00675002,167.36,167.31,6.01626287]
[1752669377717,10.00675002,167.36,167.31,0.04036287]
[1752669378217,5.9751,167.34,167.31,0.04036287]
[1752669378619,10.00675002,167.36,167.31,0.04036287]
[1752669378813,14.0985981,167.35,167.31,0.04036287]
[1752669379721,4.09184808,167.33,167.21,516.5]
[1752669379913,4.09184808,167.26,167.21,516.5]
[1752669380518,4.09184808,167.24,167.22,5.979]
[1752669380718,4.09184808,167.24,167.21,516.5]
[1752669380719,10.00675002,167.3,167.21,516.5]
[1752669381020,4.09184808,167.24,167.21,516.5]
[1752669381616,4.09184808,167.24,167.2,5.9797]
[1752669381813,4.13713202,167.24,167.2,5.9797]
[1752669382115,5.9791,167.23,167.2,5.9797]
[1752669382318,0.04528394,167.24,167.18,181.56]
[1752669382624,4.09184808,167.23,167.18,181.56]
[1752669382924,10.07084808,167.23,167.2,5.9798]
[1752669384318,10.07084808,167.23,167.19,5.9802]
[1752669384520,4.09184808,167.23,167.13,516.4]
[1752669384830,4.09184808,167.23,167.19,5.9803]
[1752669385216,6.01758803,167.23,167.16,4.09184808]
[1752669385524,0.03858803,167.23,167.16,4.09184808]
[1752669385722,4.09184808,167.22,167.16,4.09184808]
[1752669385923,0.03858803,167.23,167.16,4.09184808]
[1752669386123,4.13043611,167.23,167.13,516.4]
[1752669386326,4.09184808,167.21,167.14,181.54]
[1752669387023,0.03883074,167.19,167.17,5.9807]
[1752669387428,0.03883074,167.19,167.14,181.54]
[1752669387623,0.03883074,167.19,167.15,181.56]
[1752669388028,0.03883074,167.19,167.16,5.9814]
[1752669388422,0.03883074,167.19,167.15,181.56]
[1752669389330,4.09184808,167.25,167.19,5.9801]
[1752669389624,5.9792,167.23,167.15,181.60502839]
[1752669389829,4.09184808,167.25,167.19,5.9801]
[1752669390026,4.09184808,167.25,167.16,4.09184808]
[1752669390226,4.09184808,167.25,167.18,4.09184808]
[1752669390528,13.34233337,167.34,167.21,5.9796]
[1752669390529,10.00675002,167.26,167.21,5.9796]
[1752669390731,5.9788,167.24,167.19,0.04489927]
[1752669390919,5.9788,167.24,167.2,5.9799]
[1752669391230,5.9788,167.24,167.2,6.02384843]
[1752669391430,4.09184808,167.25,167.2,181.58394843]
[1752669391627,14.0985981,167.27,167.2,185.67579651]
[1752669391829,10.06954808,167.27,167.2,185.67579651]
[1752669392021,10.00675002,167.29,167.2,185.63184808]
[1752669392022,14.0985981,167.29,167.2,185.63184808]
[1752669392226,14.0985981,167.29,167.22,4.09184808]
[1752669392429,5.9771,167.28,167.24,5.9784]
[1752669393025,20.0754981,167.29,167.25,5.9782]
[1752669393230,4.09184808,167.29,167.22,4.13398868]
[1752669393632,5.9773,167.28,167.24,5.9783]
[1752669394034,4.09184808,167.29,167.24,5.9783]
[1752669394433,5.9772,167.28,167.24,5.9783]
[1752669394635,14.0985981,167.32,167.24,4.09184808]
[1752669394843,4.09184808,167.32,167.25,181.5]
[1752669395335,4.09184808,167.32,167.27,0.04296154]
[1752669395642,14.0985981,167.34,167.27,0.04296154]
[1752669395936,5.9759,167.32,167.27,6.02026154]
[1752669396137,5.9759,167.32,167.27,5.9773]
[1752669396438,5.9759,167.32,167.28,0.04571132]
[1752669397133,4.09184808,167.34,167.28,0.04571132]
[1752669397437,4.09184808,167.35,167.28,4.1375594]
[1752669397628,4.09184808,167.35,167.28,0.04571132]
[1752669397833,4.09184808,167.33,167.28,0.04571132]
[1752669398237,5.9758,167.32,167.28,0.04571132]
[1752669398740,5.9763,167.31,167.28,0.04571132]
[1752669398937,4.09184808,167.33,167.28,0.04571132]
[1752669399133,4.09184808,167.31,167.28,0.04571132]
[1752669399329,4.09184808,167.32,167.28,0.04571132]
[1752669399539,5.9764,167.31,167.28,0.04571132]
[1752669399838,4.09184808,167.32,167.28,0.04571132]
[1752669400136,5.9763,167.31,167.28,0.04571132]
[1752669401038,4.09184808,167.32,167.28,0.04571132]
[1752669401433,14.0985981,167.32,167.28,0.04571132]
[1752669402239,5.9768,167.3,167.28,0.04571132]
[1752669404238,5.9768,167.29,167.28,0.04571132]
[1752669404539,14.0985981,167.3,167.23,181.36]
[1752669404737,14.13705768,167.3,167.23,181.36]
[1752669405040,14.13705768,167.3,167.23,187.3388]
[1752669405244,10.0452096,167.3,167.23,187.3388]
[1752669405536,14.0985981,167.29,167.23,181.36]
[1752669406044,5.978,167.26,167.23,181.36]
[1752669406341,5.978,167.26,167.23,187.3389]
[1752669406740,6.02090785,167.26,167.23,187.2989]
[1752669408238,6.02090785,167.26,167.23,5.9789]
[1752669408438,5.9782,167.25,167.23,181.34]
[1752669408939,5.9786,167.24,167.23,181.34]
[1752669409137,4.09184808,167.25,167.13,101.6577112]
[1752669409338,0.04290785,167.26,167.14,181.3]
[1752669409339,4.09184808,167.22,167.14,181.3]
[1752669409540,4.09184808,167.22,167.14,185.39184808]
[1752669409739,4.09184808,167.27,167.18,4.09184808]
[1752669409936,0.03813243,167.2,167.19,181.3]
[1752669410139,5.9784,167.25,167.21,5.9794]
[1752669410539,5.9784,167.25,167.19,181.3]
[1752669410736,0.03903149,167.25,167.23,5.9787]
[1752669411741,0.03903149,167.25,167.24,5.9786]
[1752669412244,0.03903149,167.25,167.23,5.9788]
[1752669413039,0.03903149,167.25,167.2,4.09184808]
[1752669413345,0.03903149,167.25,167.24,5.9786]
[1752669413545,0.03903149,167.25,167.24,187.2386]
[1752669414439,0.03903149,167.25,167.24,181.26]
[1752669415744,0.03903149,167.25,167.2,4.09184808]
[1752669415951,0.03903149,167.25,167.24,5.9786]
[1752669416246,0.03903149,167.25,167.24,187.2186]
[1752669420550,0.03903149,167.25,167.24,181.24]
[1752669420746,0.03903149,167.25,167.2,4.09184808]
[1752669420951,0.03903149,167.25,167.21,181.18]
[1752669421154,6.01723149,167.25,167.21,187.1595]
[1752669421354,6.01723149,167.25,167.21,5.9795]
[1752669421546,0.03903149,167.25,167.19,516.52]
[1752669421741,0.03903149,167.25,167.2,181.16]
[1752669422247,0.03903149,167.25,167.19,516.52]
[1752669422454,0.03903149,167.25,167.21,187.1393]
[1752669422455,6.01743149,167.25,167.21,187.1393]
[1752669422749,0.03903149,167.25,167.21,187.1393]
[1752669422947,6.01743149,167.25,167.21,187.1393]
[1752669423555,6.01743149,167.25,167.22,5.9792]
[1752669423745,0.03903149,167.25,167.22,5.9792]
[1752669424051,0.03903149,167.25,167.24,5.9786]
[1752669424350,0.03903149,167.25,167.24,181.14]
[1752669424647,10.00675002,167.29,167.24,181.14]
[1752669424954,0.04436845,167.26,167.24,181.14]
[1752669425452,6.02226845,167.26,167.23,5.9787]
[1752669425750,6.02226845,167.26,167.25,181.12]
[1752669427346,0.04436845,167.26,167.25,181.12]
[1752669428150,0.04436845,167.26,167.25,187.0982]
[1752669429846,0.04436845,167.26,167.21,4.09184808]
[1752669430047,0.04436845,167.26,167.22,181.08]
[1752669430552,0.04436845,167.26,167.18,516.5]
[1752669430553,0.04436845,167.26,167.19,4.09184808]
[1752669430743,0.04436845,167.26,167.2,181.06]
[1752669431142,5.9784,167.25,167.2,181.06]
[1752669431654,5.9784,167.25,167.21,5.9794]
[1752669431849,5.9784,167.25,167.22,181.06]
[1752669432751,6.02236845,167.26,167.22,187.0393]
[1752669432957,0.04436845,167.26,167.22,181.06]
[1752669433252,0.04436845,167.26,167.24,5.9783]
[1752669433456,0.04436845,167.26,167.23,4.09184808]
[1752669433850,0.04436845,167.26,167.25,5.9782]
[1752669437152,0.04436845,167.26,167.25,186.9782]
[1752669437353,10.00675002,167.3,167.26,5.9777]
[1752669437660,10.00675002,167.3,167.27,6.21872212]
[1752669437849,10.00675002,167.3,167.26,5.9777]
[1752669438046,10.00675002,167.3,167.27,6.21851654]
[1752669438349,5.9768,167.29,167.26,5.9777]
[1752669438552,5.9768,167.29,167.27,6.21530453]
[1752669438758,5.9768,167.29,167.26,5.9777]
[1752669438956,5.9768,167.29,167.27,6.21530453]
[1752669439157,5.9768,167.29,167.26,5.9777]
[1752669439357,5.9768,167.29,167.27,6.21512716]
[1752669439658,5.9768,167.29,167.26,5.9777]
[1752669439849,15.98325002,167.3,167.27,12.19262716]
[1752669440046,15.98325002,167.3,167.27,5.9775]
[1752669440258,5.9765,167.3,167.28,6.21428858]
[1752669440454,5.9765,167.3,167.27,5.9775]
[1752669440758,5.9768,167.29,167.26,5.9777]
[1752669440959,5.9768,167.29,167.27,6.21457829]
[1752669441155,5.9768,167.29,167.26,5.9777]
[1752669441459,5.9768,167.29,167.27,6.214196]
[1752669441658,5.9768,167.29,167.26,5.9777]
[1752669442157,5.9768,167.29,167.27,6.21395597]
[1752669442354,5.9768,167.29,167.26,5.9777]
[1752669442555,5.9766,167.3,167.27,12.19122302]
[1752669442756,10.00675002,167.31,167.28,6.21382302]
[1752669443051,10.00675002,167.3,167.29,180.9]
[1752669443248,5.9764,167.3,167.29,180.9]
[1752669443959,5.9768,167.29,167.28,0.04447764]
[1752669444258,15.98355002,167.29,167.28,0.04447764]
[1752669444659,5.9768,167.29,167.28,0.04447764]
[1752669445661,5.9768,167.29,167.28,6.25836337]
[1752669446158,10.00675002,167.32,167.28,12.23536337]
[1752669446360,10.00675002,167.32,167.29,6.21388573]
[1752669446564,5.9768,167.29,167.28,0.04447764]
[1752669446757,5.9768,167.29,167.28,6.25743061]
[1752669448260,5.9768,167.29,167.28,6.25694679]
[1752669448459,5.9768,167.29,167.28,187.07694679]
[1752669449363,5.9768,167.29,167.28,180.86447764]
[1752669450058,5.9768,167.29,167.28,187.09129654]
[1752669450665,5.9768,167.29,167.28,187.09084066]
[1752669450865,5.9768,167.29,167.28,180.86447764]
[1752669452066,15.98335002,167.3,167.28,180.86447764]
[1752669452265,10.00675002,167.31,167.28,180.86447764]
[1752669452970,5.9768,167.29,167.28,180.86447764]
[1752669454165,5.9768,167.29,167.28,187.08926951]
[1752669454557,5.9768,167.29,167.28,187.00926951]
[1752669455370,5.9767,167.3,167.28,187.00926951]
[1752669455572,5.9767,167.3,167.28,180.78447764]
[1752669456168,5.9768,167.29,167.28,180.78447764]
[1752669456364,5.9768,167.29,167.28,187.00913317]
[1752669459464,5.9768,167.29,167.28,180.78447764]
[1752669459666,5.9768,167.29,167.28,187.01182923]
[1752669460970,5.9766,167.3,167.28,187.01182923]
[1752669461166,5.9766,167.3,167.28,180.78447764]
[1752669463468,5.9766,167.3,167.29,6.22756544]
[1752669464076,5.9766,167.3,167.28,180.78447764]
[1752669464264,5.9766,167.3,167.29,6.22759291]
[1752669465176,5.9762,167.31,167.29,6.22759291]
[1752669465379,14.0985981,167.33,167.28,186.76157764]
[1752669465674,5.9765,167.3,167.29,6.22718077]
[1752669467072,5.9762,167.31,167.29,6.22718077]
[1752669467283,10.00675002,167.32,167.28,186.76157764]
[1752669467577,10.00675002,167.32,167.29,6.23031645]
[1752669467770,10.00675002,167.32,167.28,186.76157764]
[1752669467971,14.0985981,167.33,167.29,6.23031648]
[1752669468171,5.9766,167.3,167.28,0.04447764]
[1752669468374,5.9766,167.3,167.29,186.7515608]
[1752669468573,10.00675002,167.32,167.29,186.7515608]
[1752669468774,10.00675002,167.32,167.29,180.52]
[1752669469075,5.9764,167.31,167.29,180.52]
[1752669469777,5.9764,167.3,167.29,180.52]
[1752669469979,5.9764,167.3,167.29,186.75136158]
[1752669470180,5.9764,167.3,167.29,186.73136158]
[1752669470478,5.9764,167.3,167.29,6.23136158]
[1752669470680,5.9764,167.3,167.29,186.71136158]
[1752669471175,5.9764,167.3,167.29,186.71225503]
[1752669472482,10.00675002,167.32,167.29,186.71225503]
[1752669472677,10.00675002,167.32,167.29,180.48]
[1752669472877,10.00675002,167.32,167.3,6.23201933]
[1752669473077,10.00675002,167.32,167.29,180.48]
[1752669473276,10.00675002,167.32,167.3,6.23178845]
[1752669473480,5.9764,167.3,167.29,180.48]
[1752669473780,5.9764,167.3,167.29,6.23178845]
[1752669473979,5.9764,167.3,167.29,186.67178845]
[1752669476780,5.9764,167.3,167.29,180.44]
[1752669477086,5.9764,167.3,167.29,186.67587026]
[1752669477583,5.9764,167.3,167.29,186.67777371]
[1752669480290,10.00675002,167.3,167.29,186.67777371]
[1752669480489,10.00675002,167.31,167.29,186.67777371]
[1752669480677,15.98285002,167.31,167.3,6.23777371]
[1752669480879,10.00675002,167.31,167.3,6.23777371]
[1752669482485,15.98255002,167.32,167.3,6.23777371]
[1752669482677,15.98255002,167.32,167.31,6.23777371]
[1752669483589,10.00675002,167.32,167.31,6.23777371]
[1752669483887,10.00675002,167.33,167.31,6.23777371]
[1752669484088,10.00675002,167.33,167.32,186.51777371]
[1752669484285,15.98205002,167.33,167.32,186.51777371]
[1752669484787,5.9759,167.32,167.29,10.06854808]
[1752669484987,5.9759,167.32,167.3,189.15663466]
[1752669485182,5.9759,167.32,167.31,8.87663466]
[1752669485380,5.9759,167.32,167.31,6.26083629]
[1752669485778,8.59169837,167.32,167.31,6.26083629]
[1752669485982,15.98265002,167.32,167.31,6.21646784]
[1752669486186,18.59844839,167.32,167.31,186.47646784]
[1752669486581,8.59169837,167.32,167.31,186.47646784]
[1752669488993,5.9759,167.32,167.31,186.47646784]
[1752669490094,5.9759,167.32,167.31,180.26]
[1752669490485,5.9768,167.29,167.28,0.04447764]
[1752669490687,5.9768,167.29,167.28,180.26447764]
[1752669491295,16.04853982,167.3,167.28,180.26447764]
[1752669492296,5.9768,167.29,167.28,180.26447764]
[1752669492596,10.07183982,167.3,167.28,180.26447764]
[1752669492999,16.04843982,167.3,167.28,180.26447764]
[1752669493698,5.9768,167.29,167.28,180.26447764]
[1752669493893,10.07183982,167.3,167.28,0.04447764]
[1752669494200,16.04843982,167.3,167.29,180.18]
[1752669497098,5.9766,167.3,167.29,180.18]
[1752669497898,16.04813982,167.31,167.29,180.18]
[1752669498099,10.07183982,167.31,167.3,6.25567823]
[1752669498293,13.34233337,167.35,167.3,6.25567823]
[1752669498596,10.07226515,167.31,167.29,180.18]
[1752669498899,10.07208753,167.31,167.3,6.25538657]
[1752669499496,16.04848753,167.31,167.3,6.25538657]
[1752669499800,5.9764,167.31,167.3,6.25538657]
[1752669500001,16.04925277,167.31,167.3,6.25538657]
[1752669502002,5.9764,167.3,167.29,180.18]
[1752669502202,5.9764,167.3,167.29,186.43560451]
[1752669504203,5.9764,167.3,167.29,6.25560451]
[1752669504409,5.9764,167.3,167.29,186.35560451]
[1752669505703,5.9764,167.3,167.29,186.33560451]
[1752669505912,5.9764,167.3,167.29,180.08]
[1752669510914,8.59363531,167.3,167.29,180.08]
[1752669511613,5.9764,167.3,167.29,180.08]
[1752669512114,5.9762,167.31,167.29,188.99672979]
[1752669512312,10.06923949,167.32,167.3,8.91672979]
[1752669512518,10.06923949,167.33,167.31,8.91672979]
[1752669512716,16.04453949,167.33,167.32,8.91672979]
[1752669512916,16.04453949,167.33,167.32,6.29949448]
[1752669513618,16.04453949,167.33,167.32,8.91672979]
[1752669515017,16.04453949,167.33,167.32,6.29949448]
[1752669515612,5.9753,167.33,167.32,6.29949448]
[1752669516717,10.06923949,167.34,167.32,10.38564586]
[1752669516718,5.9751,167.34,167.32,10.38564586]
[1752669516921,5.9751,167.34,167.33,186.25949448]
[1752669519521,5.9751,167.34,167.33,179.96]
[1752669519720,5.9751,167.34,167.33,186.24248863]
[1752669520424,5.9751,167.34,167.33,186.24171046]
[1752669521626,10.06923949,167.38,167.33,186.24171046]
[1752669521822,10.06923949,167.38,167.34,6.28171046]
[1752669522021,5.9743,167.36,167.35,6.28171046]
[1752669522226,5.9743,167.36,167.35,186.18171046]
[1752669523328,5.9743,167.36,167.35,179.9]
[1752669523532,5.9743,167.36,167.35,6.27468669]
[1752669523721,5.9746,167.35,167.34,179.90376236]
[1752669527229,5.9746,167.35,167.34,0.04376236]
[1752669527433,5.9746,167.35,167.34,179.88376236]
[1752669532428,5.9746,167.35,167.34,170.41216236]
[1752669534131,4.08615138,167.35,167.28,516.26]
[1752669534336,4.08615138,167.33,167.29,179.74]
[1752669534532,10.06923949,167.33,167.29,179.74]
[1752669534730,14.15539087,167.33,167.29,179.74]
[1752669534933,2.61660716,167.31,167.29,179.74]
[1752669535133,5.9764,167.3,167.29,179.74]
[1752669537131,0.04165125,167.31,167.29,179.74]
[1752669537338,0.04165125,167.31,167.3,4.08790881]
[1752669537533,0.04165125,167.31,167.3,10.06430881]
[1752669537734,0.04165125,167.31,167.29,179.74]
[1752669538839,0.04165125,167.31,167.29,185.7166]
[1752669540342,0.04165125,167.31,167.3,4.08790881]
[1752669540538,0.04165125,167.31,167.29,179.74]
[1752669541237,0.04165125,167.31,167.3,4.08790881]
[1752669542433,6.01775125,167.31,167.29,189.80450881]
[1752669543344,0.04165125,167.31,167.3,179.66]
[1752669544241,6.01775125,167.31,167.3,179.66]
[1752669545142,6.01775125,167.31,167.3,185.8176456]
[1752669546245,0.04165125,167.31,167.3,185.8176456]
[1752669546646,0.04165125,167.31,167.3,189.90555441]
[1752669547843,0.04165125,167.31,167.3,183.74790881]
[1752669548145,0.04165125,167.31,167.3,189.81713293]
[1752669548646,6.01775125,167.31,167.3,185.72922412]
[1752669548842,6.01775125,167.31,167.3,6.06922412]
[1752669549150,6.01775125,167.31,167.3,179.6]
[1752669550749,0.04165125,167.31,167.3,8.669e-05]
[1752669550948,0.04165125,167.31,167.29,179.58]
[1752669551250,4.08790881,167.3,167.29,161.5225]
[1752669551450,4.08790881,167.3,167.29,152.5144]
[1752669552151,10.06430881,167.3,167.29,152.5144]
[1752669553450,5.9764,167.3,167.29,152.5144]
[1752669553647,10.06430881,167.3,167.29,152.5144]
[1752669561650,4.08790881,167.3,167.25,179.52]
[1752669562149,5.9778,167.27,167.25,179.52]
[1752669562751,5.9778,167.26,167.25,179.52]
[1752669563352,4.08790881,167.3,167.25,179.52]
[1752669563552,6.01750518,167.27,167.25,179.52]
[1752669566246,5.9778,167.26,167.25,179.52]
[1752669566446,0.03980518,167.27,167.25,179.52]
[1752669566851,6.01750518,167.27,167.25,179.52]
[1752669567554,0.03980518,167.27,167.25,185.4982]
[1752669567756,0.03980518,167.27,167.26,4.08790881]
[1752669568047,4.08790881,167.33,167.26,4.08790881]
[1752669568750,5.9771,167.29,167.26,10.06560881]
[1752669568948,5.9771,167.29,167.25,179.52]
[1752669568949,4.08790881,167.33,167.25,183.60790881]
[1752669569151,4.08790881,167.33,167.26,0.0426863]
[1752669569353,5.977,167.29,167.26,6.0204863]
[1752669569953,5.9771,167.28,167.26,6.0204863]
[1752669570149,10.03525148,167.31,167.26,6.0204863]
[1752669570552,5.9769,167.29,167.26,6.0204863]
[1752669571861,5.9769,167.29,167.26,10.10839511]
[1752669572557,5.9769,167.29,167.27,5.9774]